[Event "Titled Tuesday Blitz June 28 Early 2022"]
[White "Narayanan, Srinath"]
[Black "Gurevich, Dmitry"]
[WhiteFideId "5018420"]
[BlackFideId "2000407"]
[WhiteElo "2758"]
[BlackElo "2573"]
[Result "1-0"]
[Round "06"]
[TimeControl "180+1"]
[Date "2022.06.28"]
[WhiteClock "0:00:03"]
[BlackClock "0:00:02"]

1. d4 {[%clk 0:03:00]}  Nf6 {[%clk 0:02:58]} 2. Nc3 {[%clk 0:02:59]}  d5 {[%clk 0:02:57]} 3. Bf4 {[%clk 0:03:00]}  a6 {[%clk 0:02:56]} 4. e3 {[%clk 0:03:00]}  e6 {[%clk 0:02:55]} 5. Nf3 {[%clk 0:02:58]}  c5 {[%clk 0:02:55]} 6. Ne5 {[%clk 0:02:58]}  Nc6 {[%clk 0:02:51]} 7. Be2 {[%clk 0:02:59]}  cxd4 {[%clk 0:02:49]} 8. exd4 {[%clk 0:02:58]}  Qb6 {[%clk 0:02:49]} 9. Nxc6 {[%clk 0:02:57]}  Qxc6 {[%clk 0:02:49]} 10. O-O {[%clk 0:02:53]}  Be7 {[%clk 0:02:48]} 11. Bf3 {[%clk 0:02:48]}  O-O {[%clk 0:02:45]} 12. Ne2 {[%clk 0:02:48]}  b5 {[%clk 0:02:44]} 13. b3 {[%clk 0:02:48]}  a5 {[%clk 0:02:39]} 14. Ng3 {[%clk 0:02:43]}  b4 {[%clk 0:02:38]} 15. h4 {[%clk 0:02:42]}  Ba6 {[%clk 0:02:35]} 16. Re1 {[%clk 0:02:43]}  Rac8 {[%clk 0:02:34]} 17. Rc1 {[%clk 0:02:43]}  Qc3 {[%clk 0:02:14]} 18. h5 {[%clk 0:02:42]}  h6 {[%clk 0:02:13]} 19. Be2 {[%clk 0:02:21]}  Bxe2 {[%clk 0:02:04]} 20. Rxe2 {[%clk 0:02:22]}  Rfd8 {[%clk 0:01:41]} 21. Be5 {[%clk 0:02:06]}  Nd7 {[%clk 0:01:31]} 22. Bf4 {[%clk 0:01:52]}  Bf6 {[%clk 0:01:31]} 23. Be3 {[%clk 0:01:52]}  Nb8 {[%clk 0:01:26]} 24. Rd2 {[%clk 0:01:52]}  Qc6 {[%clk 0:01:19]} 25. Ne2 {[%clk 0:01:52]}  Qa6 {[%clk 0:01:16]} 26. Nf4 {[%clk 0:01:49]}  Nc6 {[%clk 0:01:15]} 27. Qg4 {[%clk 0:01:46]}  Ne7 {[%clk 0:01:12]} 28. Nd3 {[%clk 0:01:31]}  Nf5 {[%clk 0:01:10]} 29. Nc5 {[%clk 0:01:31]}  Qb5 {[%clk 0:00:59]} 30. Na4 {[%clk 0:01:31]}  Nxe3 {[%clk 0:00:49]} 31. fxe3 {[%clk 0:01:32]}  Bg5 {[%clk 0:00:49]} 32. Qe2 {[%clk 0:01:27]}  Qxe2 {[%clk 0:00:47]} 33. Rxe2 {[%clk 0:01:27]}  Rc6 {[%clk 0:00:46]} 34. Kf2 {[%clk 0:01:27]}  Rdc8 {[%clk 0:00:46]} 35. Nc5 {[%clk 0:01:22]}  Kf8 {[%clk 0:00:42]} 36. c4 {[%clk 0:01:05]}  bxc3 {[%clk 0:00:41]} 37. Rxc3 {[%clk 0:01:06]}  Be7 {[%clk 0:00:37]} 38. Rec2 {[%clk 0:01:04]}  Ke8 {[%clk 0:00:32]} 39. a3 {[%clk 0:01:01]}  Rb6 {[%clk 0:00:25]} 40. Ke2 {[%clk 0:00:52]}  Rcb8 {[%clk 0:00:22]} 41. Rb2 {[%clk 0:00:42]}  Rc6 {[%clk 0:00:21]} 42. Kd3 {[%clk 0:00:41]}  Rb5 {[%clk 0:00:18]} 43. b4 {[%clk 0:00:41]}  axb4 {[%clk 0:00:18]} 44. axb4 {[%clk 0:00:42]}  Rcb6 {[%clk 0:00:16]} 45. Rcb3 {[%clk 0:00:40]}  Rb8 {[%clk 0:00:16]} 46. Kc3 {[%clk 0:00:40]}  Kd8 {[%clk 0:00:14]} 47. Ra2 {[%clk 0:00:39]}  Bg5 {[%clk 0:00:12]} 48. Re2 {[%clk 0:00:30]}  Ke7 {[%clk 0:00:10]} 49. e4 {[%clk 0:00:30]}  dxe4 {[%clk 0:00:09]} 50. Rxe4 {[%clk 0:00:31]}  Kd6 {[%clk 0:00:09]} 51. Re2 {[%clk 0:00:29]}  Bf6 {[%clk 0:00:08]} 52. Kc4 {[%clk 0:00:25]}  R5b6 {[%clk 0:00:07]} 53. b5 {[%clk 0:00:24]}  Ke7 {[%clk 0:00:04]} 54. Ra2 {[%clk 0:00:21]}  Rd8 {[%clk 0:00:04]} 55. Ra7+ {[%clk 0:00:21]}  Ke8 {[%clk 0:00:04]} 56. Rd3 {[%clk 0:00:20]}  Rbd6 {[%clk 0:00:04]} 57. Nb3 {[%clk 0:00:19]}  Rc8+ {[%clk 0:00:04]} 58. Kb4 {[%clk 0:00:20]}  Rcd8 {[%clk 0:00:04]} 59. Ka5 {[%clk 0:00:11]}  Rb8 {[%clk 0:00:02]} 60. Ra6 {[%clk 0:00:06]}  Bd8+ {[%clk 0:00:03]} 61. Ka4 {[%clk 0:00:06]}  Bb6 {[%clk 0:00:03]} 62. Nc5 {[%clk 0:00:05]}  Bxc5 {[%clk 0:00:03]} 63. Rc3 {[%clk 0:00:05]}  Rxa6+ {[%clk 0:00:02]} 64. bxa6 {[%clk 0:00:06]}  Bxd4 {[%clk 0:00:02]} 65. Rc4 {[%clk 0:00:06]}  e5 {[%clk 0:00:02]} 66. Ka5 {[%clk 0:00:05]}  Rb2 {[%clk 0:00:02]} 67. Rc7 {[%clk 0:00:04]}  Rxg2 {[%clk 0:00:01]} 68. Kb5 {[%clk 0:00:04]}  Ra2 {[%clk 0:00:02]} 69. Rb7 {[%clk 0:00:03]} 1-0


[Site "https://www.chess.com"]

[Event "Titled Tuesday Blitz June 28 Early 2022"]
[White "Navarrete Mendez, Gonzalo Alberto"]
[Black "Tifferet, Shaked"]
[WhiteFideId "5106850"]
[BlackFideId "2811529"]
[WhiteElo "2261"]
[BlackElo "2083"]
[Result "0-1"]
[Round "06"]
[TimeControl "180+1"]
[Date "2022.06.28"]
[WhiteClock "0:00:01"]
[BlackClock "0:00:14"]

1. e4 {[%clk 0:03:00]}  c5 {[%clk 0:02:59]} 2. Nf3 {[%clk 0:03:00]}  b6 {[%clk 0:02:59]} 3. d4 {[%clk 0:02:57]}  cxd4 {[%clk 0:03:00]} 4. Nxd4 {[%clk 0:02:58]}  Bb7 {[%clk 0:03:00]} 5. Nc3 {[%clk 0:02:58]}  Nc6 {[%clk 0:03:01]} 6. Bc4 {[%clk 0:02:46]}  e6 {[%clk 0:03:00]} 7. Bb3 {[%clk 0:02:46]}  Nxd4 {[%clk 0:02:59]} 8. Qxd4 {[%clk 0:02:45]}  Nf6 {[%clk 0:03:00]} 9. Bf4 {[%clk 0:02:18]}  Bc5 {[%clk 0:02:58]} 10. Qd3 {[%clk 0:02:17]}  Bb4 {[%clk 0:02:51]} 11. f3 {[%clk 0:02:09]}  Rc8 {[%clk 0:02:46]} 12. O-O {[%clk 0:02:05]}  Bxc3 {[%clk 0:02:44]} 13. bxc3 {[%clk 0:02:06]}  d5 {[%clk 0:02:44]} 14. e5 {[%clk 0:01:28]}  Nd7 {[%clk 0:02:42]} 15. Qe3 {[%clk 0:01:15]}  Qc7 {[%clk 0:02:39]} 16. Qf2 {[%clk 0:01:02]}  Qc5 {[%clk 0:02:19]} 17. Be3 {[%clk 0:01:00]}  Qxc3 {[%clk 0:02:18]} 18. Bd4 {[%clk 0:00:56]}  Qc7 {[%clk 0:02:16]} 19. Qg3 {[%clk 0:00:55]}  O-O {[%clk 0:02:15]} 20. c3 {[%clk 0:00:56]}  f6 {[%clk 0:02:00]} 21. f4 {[%clk 0:00:52]}  fxe5 {[%clk 0:01:57]} 22. fxe5 {[%clk 0:00:53]}  Ba6 {[%clk 0:01:51]} 23. Rxf8+ {[%clk 0:00:46]}  Rxf8 {[%clk 0:01:52]} 24. Bc2 {[%clk 0:00:43]}  Qc4 {[%clk 0:01:43]} 25. h3 {[%clk 0:00:30]}  Qe2 {[%clk 0:01:35]} 26. Ba4 {[%clk 0:00:23]}  Rf1+ {[%clk 0:01:22]} 27. Rxf1 {[%clk 0:00:21]}  Qxf1+ {[%clk 0:01:23]} 28. Kh2 {[%clk 0:00:22]}  Bb5 {[%clk 0:01:24]} 29. Bb3 {[%clk 0:00:18]}  Qf5 {[%clk 0:01:14]} 30. Qe3 {[%clk 0:00:16]}  h6 {[%clk 0:01:10]} 31. Qd2 {[%clk 0:00:16]}  Nxe5 {[%clk 0:01:06]} 32. Bc2 {[%clk 0:00:17]}  Bd3 {[%clk 0:00:59]} 33. Bd1 {[%clk 0:00:13]}  Nc4 {[%clk 0:00:56]} 34. Qe1 {[%clk 0:00:11]}  Qf4+ {[%clk 0:00:50]} 35. Kg1 {[%clk 0:00:11]}  e5 {[%clk 0:00:42]} 36. Bf2 {[%clk 0:00:10]}  Qd2 {[%clk 0:00:37]} 37. Bf3 {[%clk 0:00:07]}  e4 {[%clk 0:00:35]} 38. Bg4 {[%clk 0:00:06]}  Qxe1+ {[%clk 0:00:27]} 39. Bxe1 {[%clk 0:00:07]}  Kf7 {[%clk 0:00:27]} 40. Bc8 {[%clk 0:00:07]}  Nd6 {[%clk 0:00:19]} 41. Bd7 {[%clk 0:00:06]}  Bc4 {[%clk 0:00:19]} 42. Bg3 {[%clk 0:00:05]}  Ke7 {[%clk 0:00:18]} 43. Bg4 {[%clk 0:00:04]}  Bxa2 {[%clk 0:00:17]} 44. Kf2 {[%clk 0:00:03]}  Bc4 {[%clk 0:00:17]} 45. Ke3 {[%clk 0:00:03]}  a5 {[%clk 0:00:17]} 46. Kd2 {[%clk 0:00:03]}  a4 {[%clk 0:00:17]} 47. Kc2 {[%clk 0:00:03]}  a3 {[%clk 0:00:17]} 48. Bf2 {[%clk 0:00:02]}  a2 {[%clk 0:00:16]} 49. Kb2 {[%clk 0:00:02]}  Nb5 {[%clk 0:00:14]} 50. Bxb6 {[%clk 0:00:02]}  Nxc3 {[%clk 0:00:14]} 51. Bc5+ {[%clk 0:00:01]}  Kf7 {[%clk 0:00:14]} 0-1


[Site "https://www.chess.com"]

[Event "Titled Tuesday Blitz June 28 Early 2022"]
[White "Novikova, Galina"]
[Black "Nunez V, Gustavo Eduardo"]
[WhiteFideId "4157095"]
[BlackFideId "4403690"]
[WhiteElo "1863"]
[BlackElo "2228"]
[Result "1-0"]
[Round "06"]
[TimeControl "180+1"]
[Date "2022.06.28"]
[WhiteClock "0:00:51"]
[BlackClock "0:00:02"]

1. e4 {[%clk 0:02:57]}  c5 {[%clk 0:02:58]} 2. Nf3 {[%clk 0:02:57]}  Nc6 {[%clk 0:02:58]} 3. d4 {[%clk 0:02:57]}  cxd4 {[%clk 0:02:59]} 4. Nxd4 {[%clk 0:02:57]}  e5 {[%clk 0:02:59]} 5. Nb5 {[%clk 0:02:56]}  a6 {[%clk 0:02:59]} 6. Nd6+ {[%clk 0:02:56]}  Bxd6 {[%clk 0:03:00]} 7. Qxd6 {[%clk 0:02:56]}  Qf6 {[%clk 0:03:01]} 8. Qd1 {[%clk 0:02:56]}  Qg6 {[%clk 0:03:01]} 9. Nc3 {[%clk 0:02:54]}  Nge7 {[%clk 0:03:01]} 10. g3 {[%clk 0:02:53]}  O-O {[%clk 0:02:53]} 11. Bg2 {[%clk 0:02:53]}  d5 {[%clk 0:02:50]} 12. Nxd5 {[%clk 0:02:50]}  Nxd5 {[%clk 0:02:48]} 13. exd5 {[%clk 0:02:51]}  Nd4 {[%clk 0:02:48]} 14. O-O {[%clk 0:02:49]}  Nxc2 {[%clk 0:02:47]} 15. Rb1 {[%clk 0:02:49]}  Nd4 {[%clk 0:02:40]} 16. Be3 {[%clk 0:02:49]}  Bg4 {[%clk 0:02:35]} 17. f3 {[%clk 0:02:49]}  Bf5 {[%clk 0:02:35]} 18. Rc1 {[%clk 0:02:43]}  Qb6 {[%clk 0:02:25]} 19. f4 {[%clk 0:02:36]}  Qxb2 {[%clk 0:02:19]} 20. Kh1 {[%clk 0:02:23]}  Nc2 {[%clk 0:01:36]} 21. Bc5 {[%clk 0:02:18]}  Rfc8 {[%clk 0:01:34]} 22. Rb1 {[%clk 0:02:16]}  Qc3 {[%clk 0:01:22]} 23. Bb6 {[%clk 0:02:03]}  exf4 {[%clk 0:01:18]} 24. Rxf4 {[%clk 0:02:01]}  Bg6 {[%clk 0:01:18]} 25. Rc1 {[%clk 0:01:54]}  Re8 {[%clk 0:01:10]} 26. Rf1 {[%clk 0:01:48]}  Bd3 {[%clk 0:01:06]} 27. Rf3 {[%clk 0:01:40]}  Re1+ {[%clk 0:01:01]} 28. Qxe1 {[%clk 0:01:39]}  Qxe1+ {[%clk 0:01:01]} 29. Rxe1 {[%clk 0:01:38]}  Nxe1 {[%clk 0:01:02]} 30. Re3 {[%clk 0:01:37]}  Nxg2 {[%clk 0:01:00]} 31. Rxd3 {[%clk 0:01:28]}  Ne1 {[%clk 0:00:59]} 32. Rd1 {[%clk 0:01:19]}  Nf3 {[%clk 0:00:58]} 33. d6 {[%clk 0:01:17]}  Ne5 {[%clk 0:00:37]} 34. d7 {[%clk 0:01:17]}  Nxd7 {[%clk 0:00:27]} 35. Rxd7 {[%clk 0:01:18]}  Rb8 {[%clk 0:00:22]} 36. a4 {[%clk 0:01:18]}  Kf8 {[%clk 0:00:21]} 37. a5 {[%clk 0:01:18]}  Ke8 {[%clk 0:00:20]} 38. Rc7 {[%clk 0:01:18]}  h5 {[%clk 0:00:19]} 39. Kg2 {[%clk 0:01:18]}  g5 {[%clk 0:00:18]} 40. Rc5 {[%clk 0:01:16]}  f6 {[%clk 0:00:18]} 41. Rc7 {[%clk 0:01:17]}  Kf8 {[%clk 0:00:18]} 42. Rh7 {[%clk 0:01:16]}  Kg8 {[%clk 0:00:18]} 43. Rd7 {[%clk 0:01:10]}  Re8 {[%clk 0:00:16]} 44. Rxb7 {[%clk 0:01:05]}  Re2+ {[%clk 0:00:09]} 45. Kg1 {[%clk 0:01:05]}  h4 {[%clk 0:00:09]} 46. gxh4 {[%clk 0:01:03]}  gxh4 {[%clk 0:00:09]} 47. Ra7 {[%clk 0:01:03]}  h3 {[%clk 0:00:08]} 48. Rxa6 {[%clk 0:01:00]}  f5 {[%clk 0:00:07]} 49. Bc7 {[%clk 0:00:58]}  Rg2+ {[%clk 0:00:05]} 50. Kf1 {[%clk 0:00:57]}  Ra2 {[%clk 0:00:05]} 51. Bg3 {[%clk 0:00:52]}  Kf7 {[%clk 0:00:02]} 52. Ra8 {[%clk 0:00:51]} 1-0


[Site "https://www.chess.com"]

[Event "Titled Tuesday Blitz June 28 Early 2022"]
[White "Oliveira, Jonathan De"]
[Black "Simonovic, Miroslav"]
[WhiteFideId "2180820"]
[BlackFideId "919152"]
[WhiteElo "2075"]
[BlackElo "2043"]
[Result "0-1"]
[Round "06"]
[TimeControl "180+1"]
[Date "2022.06.28"]
[WhiteClock "0:00:51"]
[BlackClock "0:00:14"]

1. e4 {[%clk 0:02:58]}  c5 {[%clk 0:03:00]} 2. Nf3 {[%clk 0:02:58]}  Nc6 {[%clk 0:03:00]} 3. Bb5 {[%clk 0:02:58]}  g6 {[%clk 0:03:00]} 4. Bxc6 {[%clk 0:02:57]}  dxc6 {[%clk 0:03:01]} 5. d3 {[%clk 0:02:54]}  Bg7 {[%clk 0:03:02]} 6. Nc3 {[%clk 0:02:55]}  e5 {[%clk 0:03:00]} 7. Be3 {[%clk 0:02:55]}  b6 {[%clk 0:03:00]} 8. h3 {[%clk 0:02:54]}  Ne7 {[%clk 0:03:00]} 9. Qd2 {[%clk 0:02:55]}  h6 {[%clk 0:03:00]} 10. O-O {[%clk 0:02:54]}  Be6 {[%clk 0:03:00]} 11. Nh2 {[%clk 0:02:51]}  Qd7 {[%clk 0:02:43]} 12. b3 {[%clk 0:02:51]}  f5 {[%clk 0:02:41]} 13. f4 {[%clk 0:02:49]}  exf4 {[%clk 0:02:38]} 14. Bxf4 {[%clk 0:02:47]}  Qd4+ {[%clk 0:02:37]} 15. Kh1 {[%clk 0:02:41]}  Qxc3 {[%clk 0:02:37]} 16. Qe2 {[%clk 0:02:36]}  g5 {[%clk 0:02:10]} 17. exf5 {[%clk 0:02:34]}  gxf4 {[%clk 0:02:10]} 18. Qxe6 {[%clk 0:02:34]}  Qe5 {[%clk 0:02:07]} 19. Qxe5 {[%clk 0:02:30]}  Bxe5 {[%clk 0:02:08]} 20. Rae1 {[%clk 0:02:29]}  Bf6 {[%clk 0:02:00]} 21. Ng4 {[%clk 0:02:29]}  Kf7 {[%clk 0:02:00]} 22. Re6 {[%clk 0:02:27]}  Ng8 {[%clk 0:01:45]} 23. Rfe1 {[%clk 0:02:24]}  Rf8 {[%clk 0:01:24]} 24. Rxc6 {[%clk 0:02:23]}  h5 {[%clk 0:01:04]} 25. Rc7+ {[%clk 0:02:12]}  Be7 {[%clk 0:01:03]} 26. Ne5+ {[%clk 0:02:09]}  Kf6 {[%clk 0:00:53]} 27. Ng6 {[%clk 0:02:09]}  Rh6 {[%clk 0:00:49]} 28. Nxf8 {[%clk 0:01:57]}  Bxf8 {[%clk 0:00:50]} 29. Rxa7 {[%clk 0:01:49]}  Kxf5 {[%clk 0:00:48]} 30. Rf7+ {[%clk 0:01:49]}  Rf6 {[%clk 0:00:47]} 31. Rh7 {[%clk 0:01:44]}  Nh6 {[%clk 0:00:41]} 32. a4 {[%clk 0:01:39]}  Bd6 {[%clk 0:00:37]} 33. Rb7 {[%clk 0:01:37]}  Be5 {[%clk 0:00:35]} 34. a5 {[%clk 0:01:29]}  bxa5 {[%clk 0:00:34]} 35. Rb5 {[%clk 0:01:29]}  Rc6 {[%clk 0:00:28]} 36. Rxa5 {[%clk 0:01:28]}  Bc3 {[%clk 0:00:28]} 37. Rea1 {[%clk 0:01:22]}  Bxa1 {[%clk 0:00:27]} 38. Rxa1 {[%clk 0:01:22]}  Kg6 {[%clk 0:00:20]} 39. Ra4 {[%clk 0:01:20]}  Nf5 {[%clk 0:00:20]} 40. Rxf4 {[%clk 0:01:19]}  Nd4 {[%clk 0:00:21]} 41. b4 {[%clk 0:01:15]}  Nxc2 {[%clk 0:00:20]} 42. b5 {[%clk 0:01:16]}  Rb6 {[%clk 0:00:19]} 43. Rc4 {[%clk 0:01:16]}  Na3 {[%clk 0:00:18]} 44. Rxc5 {[%clk 0:01:16]}  Rxb5 {[%clk 0:00:18]} 45. Rc6+ {[%clk 0:01:15]}  Kg5 {[%clk 0:00:18]} 46. Kh2 {[%clk 0:01:16]}  Nb1 {[%clk 0:00:16]} 47. Kg3 {[%clk 0:01:13]}  Rd5 {[%clk 0:00:16]} 48. h4+ {[%clk 0:01:13]}  Kf5 {[%clk 0:00:16]} 49. Rh6 {[%clk 0:01:09]}  Rxd3+ {[%clk 0:00:16]} 50. Kh2 {[%clk 0:01:09]}  Kg4 {[%clk 0:00:16]} 51. Rb6 {[%clk 0:01:08]}  Nd2 {[%clk 0:00:15]} 52. Rb4+ {[%clk 0:01:08]}  Kf5 {[%clk 0:00:14]} 53. Rb5+ {[%clk 0:01:06]}  Kf4 {[%clk 0:00:14]} 54. Rxh5 {[%clk 0:01:04]}  Nf1+ {[%clk 0:00:14]} 55. Kg1 {[%clk 0:01:04]}  Ng3 {[%clk 0:00:14]} 56. Rd5 {[%clk 0:00:50]}  Rxd5 {[%clk 0:00:14]} 57. h5 {[%clk 0:00:51]}  Rd1+ {[%clk 0:00:14]} 58. Kf2 {[%clk 0:00:51]}  Rf1# {[%clk 0:00:14]} 0-1


[Site "https://www.chess.com"]

[Event "Titled Tuesday Blitz June 28 Early 2022"]
[White "Papp, Levente"]
[Black "Sevian, Samuel"]
[WhiteFideId "751243"]
[BlackFideId "2040506"]
[WhiteElo "2308"]
[BlackElo "2692"]
[Result "0-1"]
[Round "06"]
[TimeControl "180+1"]
[Date "2022.06.28"]
[WhiteClock "0:00:02"]
[BlackClock "0:00:56"]

1. Nf3 {[%clk 0:03:00]}  c5 {[%clk 0:02:49]} 2. g3 {[%clk 0:02:58]}  Nc6 {[%clk 0:02:49]} 3. Bg2 {[%clk 0:02:56]}  e5 {[%clk 0:02:49]} 4. O-O {[%clk 0:02:55]}  Nf6 {[%clk 0:02:50]} 5. c4 {[%clk 0:02:54]}  d5 {[%clk 0:02:51]} 6. cxd5 {[%clk 0:02:54]}  Nxd5 {[%clk 0:02:52]} 7. e3 {[%clk 0:02:49]}  Nc7 {[%clk 0:02:50]} 8. b3 {[%clk 0:02:47]}  Be7 {[%clk 0:02:49]} 9. Bb2 {[%clk 0:02:47]}  f6 {[%clk 0:02:50]} 10. d4 {[%clk 0:02:44]}  cxd4 {[%clk 0:02:50]} 11. exd4 {[%clk 0:02:44]}  e4 {[%clk 0:02:51]} 12. Nfd2 {[%clk 0:02:42]}  f5 {[%clk 0:02:51]} 13. d5 {[%clk 0:02:32]}  Nxd5 {[%clk 0:02:50]} 14. Bxg7 {[%clk 0:02:32]}  Bf6 {[%clk 0:02:51]} 15. Qh5+ {[%clk 0:02:27]}  Ke7 {[%clk 0:02:47]} 16. Bxf6+ {[%clk 0:02:09]}  Nxf6 {[%clk 0:02:48]} 17. Qh4 {[%clk 0:02:05]}  Ne5 {[%clk 0:02:41]} 18. Nc4 {[%clk 0:01:51]}  Nxc4 {[%clk 0:02:25]} 19. bxc4 {[%clk 0:01:52]}  Be6 {[%clk 0:02:25]} 20. Nc3 {[%clk 0:01:46]}  Kf7 {[%clk 0:02:25]} 21. Rfd1 {[%clk 0:01:42]}  Qg8 {[%clk 0:02:25]} 22. Nd5 {[%clk 0:01:40]}  Bxd5 {[%clk 0:02:24]} 23. cxd5 {[%clk 0:01:40]}  Qg4 {[%clk 0:02:24]} 24. Qh6 {[%clk 0:01:27]}  Rhd8 {[%clk 0:02:20]} 25. Rab1 {[%clk 0:01:23]}  b6 {[%clk 0:02:19]} 26. Bf1 {[%clk 0:01:12]}  Rac8 {[%clk 0:02:17]} 27. Rbc1 {[%clk 0:01:12]}  Qf3 {[%clk 0:02:09]} 28. d6 {[%clk 0:00:56]}  Qxf2+ {[%clk 0:01:56]} 29. Kh1 {[%clk 0:00:36]}  Ke6 {[%clk 0:01:12]} 30. d7 {[%clk 0:00:21]}  Rxd7 {[%clk 0:01:06]} 31. Rxd7 {[%clk 0:00:12]}  Rxc1 {[%clk 0:01:05]} 32. Qxc1 {[%clk 0:00:08]}  Nxd7 {[%clk 0:01:01]} 33. Bc4+ {[%clk 0:00:07]}  Kd6 {[%clk 0:00:59]} 34. Qd1+ {[%clk 0:00:05]}  Kc7 {[%clk 0:00:58]} 35. Qd5 {[%clk 0:00:02]}  Qc5 {[%clk 0:00:56]} 0-1


[Site "https://www.chess.com"]

[Event "Titled Tuesday Blitz June 28 Early 2022"]
[White "Perez Gormaz, Matias"]
[Black "Agasarov, Benik"]
[WhiteFideId "3406342"]
[BlackFideId "13314823"]
[WhiteElo "2341"]
[BlackElo "2697"]
[Result "0-1"]
[Round "06"]
[TimeControl "180+1"]
[Date "2022.06.28"]
[WhiteClock "0:01:24"]
[BlackClock "0:01:57"]

1. e4 {[%clk 0:03:00]}  e5 {[%clk 0:02:58]} 2. Nf3 {[%clk 0:02:57]}  Nc6 {[%clk 0:02:58]} 3. Bc4 {[%clk 0:02:58]}  Nf6 {[%clk 0:02:54]} 4. d3 {[%clk 0:02:58]}  Bc5 {[%clk 0:02:52]} 5. c3 {[%clk 0:02:58]}  O-O {[%clk 0:02:52]} 6. Bb3 {[%clk 0:02:57]}  a6 {[%clk 0:02:51]} 7. h3 {[%clk 0:02:56]}  d6 {[%clk 0:02:49]} 8. Nbd2 {[%clk 0:02:55]}  h6 {[%clk 0:02:49]} 9. Nf1 {[%clk 0:02:56]}  Ba7 {[%clk 0:02:49]} 10. Ng3 {[%clk 0:02:56]}  Re8 {[%clk 0:02:48]} 11. Qe2 {[%clk 0:02:40]}  Be6 {[%clk 0:02:44]} 12. Bc2 {[%clk 0:02:39]}  d5 {[%clk 0:02:44]} 13. Nh4 {[%clk 0:02:39]}  Nxe4 {[%clk 0:02:25]} 14. dxe4 {[%clk 0:02:40]}  Qxh4 {[%clk 0:02:24]} 15. exd5 {[%clk 0:02:37]}  Bxd5 {[%clk 0:02:20]} 16. Nf5 {[%clk 0:02:37]}  Qf6 {[%clk 0:02:16]} 17. Rg1 {[%clk 0:02:29]}  e4 {[%clk 0:02:13]} 18. Ne3 {[%clk 0:02:24]}  Rad8 {[%clk 0:02:10]} 19. Nxd5 {[%clk 0:01:59]}  Rxd5 {[%clk 0:02:11]} 20. Be3 {[%clk 0:01:47]}  Bxe3 {[%clk 0:02:09]} 21. fxe3 {[%clk 0:01:39]}  Qd6 {[%clk 0:02:07]} 22. Rd1 {[%clk 0:01:35]}  Rxd1+ {[%clk 0:02:04]} 23. Bxd1 {[%clk 0:01:32]}  Ne5 {[%clk 0:02:02]} 24. Bc2 {[%clk 0:01:31]}  Nd3+ {[%clk 0:01:59]} 25. Bxd3 {[%clk 0:01:25]}  exd3 {[%clk 0:02:00]} 26. Qf3 {[%clk 0:01:24]}  Qb6 {[%clk 0:01:57]} 0-1


[Site "https://www.chess.com"]

[Event "Titled Tuesday Blitz June 28 Early 2022"]
[White "Piliczewski, Bogusz"]
[Black "Bringas Gomez, Artai"]
[WhiteFideId "1104144"]
[BlackFideId "24534064"]
[WhiteElo "1896"]
[BlackElo "1988"]
[Result "0-1"]
[Round "06"]
[TimeControl "180+1"]
[Date "2022.06.28"]
[WhiteClock "0:00:14"]
[BlackClock "0:02:13"]

1. d4 {[%clk 0:02:54]}  d5 {[%clk 0:02:59]} 2. Nf3 {[%clk 0:02:54]}  Bg4 {[%clk 0:02:58]} 3. Ne5 {[%clk 0:02:53]}  Bf5 {[%clk 0:02:58]} 4. c4 {[%clk 0:02:54]}  e6 {[%clk 0:02:56]} 5. Nc3 {[%clk 0:02:51]}  c6 {[%clk 0:02:56]} 6. Qb3 {[%clk 0:02:51]}  Qc8 {[%clk 0:02:54]} 7. Bf4 {[%clk 0:02:46]}  Nd7 {[%clk 0:02:55]} 8. Rc1 {[%clk 0:02:41]}  Ngf6 {[%clk 0:02:53]} 9. cxd5 {[%clk 0:02:19]}  exd5 {[%clk 0:02:53]} 10. f3 {[%clk 0:01:56]}  Be6 {[%clk 0:02:51]} 11. Qa4 {[%clk 0:01:32]}  Be7 {[%clk 0:02:46]} 12. e4 {[%clk 0:01:19]}  O-O {[%clk 0:02:46]} 13. Bd3 {[%clk 0:01:05]}  Nh5 {[%clk 0:02:40]} 14. Be3 {[%clk 0:00:55]}  Nxe5 {[%clk 0:02:38]} 15. dxe5 {[%clk 0:00:54]}  dxe4 {[%clk 0:02:37]} 16. Qxe4 {[%clk 0:00:43]}  f5 {[%clk 0:02:35]} 17. exf6 {[%clk 0:00:35]}  Nxf6 {[%clk 0:02:34]} 18. Qe5 {[%clk 0:00:23]}  Qd7 {[%clk 0:02:27]} 19. Rd1 {[%clk 0:00:20]}  Bd6 {[%clk 0:02:21]} 20. Qxd6 {[%clk 0:00:17]}  Qxd6 {[%clk 0:02:21]} 21. Bxh7+ {[%clk 0:00:18]}  Kxh7 {[%clk 0:02:21]} 22. Rxd6 {[%clk 0:00:18]}  Rfe8 {[%clk 0:02:19]} 23. Kf2 {[%clk 0:00:14]}  Nd5 {[%clk 0:02:13]} 0-1


[Site "https://www.chess.com"]

[Event "Titled Tuesday Blitz June 28 Early 2022"]
[White "Plazuelo Pascual, Juan"]
[Black "Nenezic, Marko"]
[WhiteFideId "32059566"]
[BlackFideId "912123"]
[WhiteElo "2359"]
[BlackElo "2432"]
[Result "0-1"]
[Round "06"]
[TimeControl "180+1"]
[Date "2022.06.28"]
[WhiteClock "0:01:17"]
[BlackClock "0:01:08"]

1. e4 {[%clk 0:03:00]}  c5 {[%clk 0:02:59]} 2. Nf3 {[%clk 0:02:59]}  d6 {[%clk 0:03:00]} 3. Bb5+ {[%clk 0:02:59]}  Nd7 {[%clk 0:03:00]} 4. Ba4 {[%clk 0:02:56]}  Nf6 {[%clk 0:02:56]} 5. O-O {[%clk 0:02:57]}  e6 {[%clk 0:02:56]} 6. d4 {[%clk 0:02:53]}  cxd4 {[%clk 0:02:54]} 7. Nxd4 {[%clk 0:02:53]}  Be7 {[%clk 0:02:52]} 8. Re1 {[%clk 0:02:50]}  O-O {[%clk 0:02:47]} 9. c4 {[%clk 0:02:50]}  a6 {[%clk 0:02:43]} 10. Nc3 {[%clk 0:02:49]}  Qc7 {[%clk 0:02:41]} 11. Qe2 {[%clk 0:02:40]}  Nc5 {[%clk 0:02:40]} 12. Bc2 {[%clk 0:02:37]}  b6 {[%clk 0:02:40]} 13. b3 {[%clk 0:02:31]}  Bb7 {[%clk 0:02:37]} 14. Bb2 {[%clk 0:02:31]}  Rfe8 {[%clk 0:02:37]} 15. Rac1 {[%clk 0:02:27]}  Rac8 {[%clk 0:02:32]} 16. Bb1 {[%clk 0:02:28]}  Qb8 {[%clk 0:02:31]} 17. Rcd1 {[%clk 0:02:13]}  Qa8 {[%clk 0:02:24]} 18. h3 {[%clk 0:02:13]}  g6 {[%clk 0:01:55]} 19. Rd2 {[%clk 0:02:12]}  Nh5 {[%clk 0:01:54]} 20. g3 {[%clk 0:02:11]}  Rcd8 {[%clk 0:01:50]} 21. Kh2 {[%clk 0:02:04]}  Qb8 {[%clk 0:01:49]} 22. b4 {[%clk 0:01:58]}  Nd7 {[%clk 0:01:49]} 23. a3 {[%clk 0:01:59]}  Rc8 {[%clk 0:01:49]} 24. Ba2 {[%clk 0:01:58]}  Qa8 {[%clk 0:01:48]} 25. Nc2 {[%clk 0:01:49]}  Rc7 {[%clk 0:01:36]} 26. Red1 {[%clk 0:01:44]}  Rec8 {[%clk 0:01:36]} 27. Ne3 {[%clk 0:01:36]}  Nhf6 {[%clk 0:01:28]} 28. f3 {[%clk 0:01:31]}  b5 {[%clk 0:01:20]} 29. Rc2 {[%clk 0:01:24]}  Ne5 {[%clk 0:01:08]} 30. cxb5 {[%clk 0:01:21]}  axb5 {[%clk 0:01:09]} 31. Nxb5 {[%clk 0:01:16]}  Rxc2 {[%clk 0:01:08]} 32. Nxc2 {[%clk 0:01:17]}  Nxf3+ {[%clk 0:01:08]} 0-1


[Site "https://www.chess.com"]